bitfinex/quotes_ETHUSD_20250428
["timestamp","ask_amount","ask_price","bid_price","bid_amount"]
[1745861866814,22.4520992,1764.0,1763.9,1.27050327]
[1745861867026,22.4520992,1764.0,1763.9,5.66925562]
[1745861867244,0.4060992,1764.0,1763.9,6.97295562]
[1745861868923,0.4060992,1764.0,1763.9,5.66925562]
[1745861870637,5.4220992,1764.0,1763.9,5.66925562]
[1745861875924,5.4220992,1764.0,1763.8,5.66934858]
[1745861876238,5.4220992,1764.0,1763.9,5.66925562]
[1745861877567,5.4220992,1764.0,1763.9,6.80311604]
[1745861879159,17.021,1765.5,1764.1,0.7711]
[1745861879321,5.012,1764.9,1764.7,5.66648378]
[1745861879957,5.012,1764.9,1764.8,5.63656446]
[1745861880173,5.012,1764.9,1764.7,5.66649556]
[1745861880373,5.012,1764.8,1764.7,5.66649556]
[1745861881144,3.38390928,1765.1,1764.8,5.66613429]
[1745861881467,6.38390928,1764.9,1764.4,1.3211]
[1745861881670,9.25099557,1764.9,1764.4,5.66737771]
[1745861881829,9.25099557,1764.9,1764.5,5.66711891]
[1745861882959,3.0,1764.9,1764.5,5.66711891]
[1745861883161,3.0,1764.9,1764.5,5.6670928]
[1745861883359,3.8011,1764.9,1764.5,5.6670928]
[1745861883830,3.8011,1764.9,1764.6,5.66693333]
[1745861884031,5.01,1764.8,1764.6,5.66693333]
[1745861884231,5.01,1764.8,1764.5,5.66713429]
[1745861886044,5.01,1764.8,1764.4,5.66746899]
[1745861886250,5.01,1764.8,1764.5,5.66721854]
[1745861886459,5.01,1764.8,1764.6,5.66700301]
[1745861886625,5.01,1764.9,1764.7,6.44056271]
[1745861887064,5.01,1764.9,1764.7,12.10706809]
[1745861887261,5.01,1764.9,1764.8,5.66636446]
[1745861891172,5.01,1764.9,1764.7,6.44041883]
[1745861891470,5.01,1764.9,1764.7,6.44036603]
[1745861891648,5.01,1764.9,1764.8,6.31040106]
[1745861892975,5.01,1764.9,1764.8,0.6440366]
[1745861893176,5.01,1764.9,1764.7,12.10685197]
[1745861893580,5.01,1764.9,1764.7,5.66646603]
[1745861895179,5.01,1764.9,1764.7,0.55]
[1745861895356,5.01,1764.9,1764.7,6.21654254]
[1745861895557,5.01,1764.9,1764.7,11.88301951]
[1745861895758,5.01,1764.9,1764.7,12.80112437]
[1745861896084,5.01,1764.9,1764.7,1.46810486]
[1745861896250,5.01,1764.9,1764.7,0.55]
[1745861899156,5.01,1764.9,1764.4,6.43226377]
[1745861899489,5.01,1764.9,1764.4,6.43235378]
[1745861899782,11.26099557,1764.9,1764.2,0.8283]
[1745861900078,11.26099557,1764.9,1764.2,6.49645908]
[1745861900278,1.12609956,1764.8,1764.2,7.7129464]
[1745861902287,1.12609956,1764.8,1764.2,7.71291832]
[1745861902487,1.12609956,1764.8,1764.2,13.38099013]
[1745861902648,1.12609956,1764.8,1764.3,5.66791753]
[1745861903776,5.01,1764.9,1764.4,5.66762792]
[1745861904274,5.01,1764.9,1764.4,0.55]
[1745861906208,5.01,1764.9,1764.4,6.21750774]
[1745861906608,5.01,1764.9,1764.4,0.55]
[1745861907011,5.01,1764.9,1764.4,6.2173951]
[1745861907188,5.01,1764.9,1764.4,6.83913461]
[1745861907509,5.01,1764.9,1764.4,12.50662911]
[1745861907696,5.01,1764.9,1764.4,6.83913461]
[1745861908908,11.26099557,1764.9,1764.2,2.04478732]
[1745861909211,3.0,1764.8,1764.2,1.21648732]
[1745861909506,3.0,1764.8,1764.3,6.21781783]
[1745861909507,6.37528381,1764.8,1764.3,6.21781783]
[1745861909711,6.37528381,1764.8,1764.3,0.55]
[1745861910507,6.37528381,1764.8,1764.2,6.884551]
[1745861910715,7.51381219,1764.8,1764.2,6.884551]
[1745861912413,7.51381219,1764.8,1764.1,7.04431515]
[1745861912414,3.37528381,1764.6,1764.1,0.8259]
[1745861912599,5.007,1764.5,1764.1,6.4943311]
[1745861912982,5.007,1764.5,1764.1,12.16272091]
[1745861913209,5.007,1764.5,1764.1,12.1626923]
[1745861913612,5.007,1764.5,1764.2,5.66817403]
[1745861914237,5.007,1764.5,1764.1,6.49428249]
[1745861914382,5.007,1764.5,1764.1,6.93968499]
[1745861914582,5.007,1764.5,1764.1,12.60811718]
[1745861914820,5.007,1764.5,1764.2,5.66817293]
[1745861916521,5.007,1764.5,1764.1,6.93968499]
[1745861916722,5.007,1764.5,1764.2,5.66828346]
[1745861917611,5.007,1764.5,1764.4,5.66764905]
[1745861917814,17.014,1765.1,1764.6,5.66697596]
[1745861918116,3.37528381,1764.9,1764.4,11.88501153]
[1745861918319,3.37528381,1764.9,1764.4,0.55]
[1745861918527,3.37528381,1764.9,1764.4,6.21754699]
[1745861919086,4.21351219,1764.9,1764.5,5.66730192]
[1745861919424,3.37528381,1764.9,1764.6,5.66685058]
[1745861919602,5.007,1765.0,1764.7,5.66664557]
[1745861920104,5.007,1765.0,1764.6,6.4230359]
[1745861921432,5.007,1765.0,1764.6,6.42302574]
[1745861921792,5.007,1765.0,1764.7,5.66664594]
[1745861921993,5.007,1765.0,1764.7,5.66667176]
[1745861922188,5.007,1765.0,1764.6,6.42297864]
[1745861922393,5.007,1765.0,1764.7,5.66666291]
[1745861922594,5.007,1765.0,1764.6,7.0652765]
[1745861923124,5.007,1765.0,1764.6,12.73206425]
[1745861923311,5.007,1765.0,1764.7,5.6666662]
[1745861923512,5.007,1765.0,1764.6,7.0652765]
[1745861923885,5.007,1765.0,1764.7,5.66665651]
[1745861924090,5.007,1765.0,1764.6,7.0652765]
[1745861924712,5.007,1765.0,1764.8,5.66615394]
[1745861925296,5.007,1765.0,1764.9,5.6660434]
[1745861925806,17.014,1765.1,1764.9,5.6660434]
[1745861926010,5.006,1765.0,1764.9,5.6660434]
[1745861926528,5.006,1765.0,1764.9,6.4771434]
[1745861926727,5.006,1765.0,1764.9,7.69147313]
[1745861927234,5.006,1765.0,1764.9,2.02542973]
[1745861927420,5.006,1765.0,1764.8,5.66615335]
[1745861928001,5.006,1765.0,1764.9,5.6660434]
[1745861929817,5.006,1765.0,1764.9,6.2160434]
[1745861933650,5.006,1765.0,1764.9,6.64085173]
[1745861933815,5.006,1765.0,1764.9,7.43295173]
[1745861934016,5.006,1765.0,1764.9,8.74286224]
[1745861934333,6.37528381,1765.6,1764.9,8.74286224]
[1745861934334,5.006,1765.3,1765.2,5.66508044]
[1745861936442,17.012,1765.8,1765.4,5.66426551]
[1745861936746,17.012,1765.8,1765.4,5.66443865]
[1745861936747,5.005,1765.5,1765.4,5.66443865]
[1745861936956,5.005,1765.5,1765.4,6.21443865]
[1745861937136,5.005,1765.5,1765.4,7.40234393]
[1745861937530,5.005,1765.5,1765.4,7.83391415]
[1745861938113,5.005,1765.5,1765.4,8.59751415]
[1745861938316,22.017,1765.8,1765.6,5.663797]
[1745861938539,22.017,1765.8,1765.6,6.213797]
[1745861938851,5.005,1765.8,1765.6,7.40158239]
[1745861940129,5.005,1765.8,1765.6,8.23038239]
[1745861941376,0.5,1766.1,1765.6,11.23038239]
[1745861941570,0.5,1766.1,1766.0,6.21251415]
[1745861941872,0.5,1766.1,1766.0,8.19553504]
[1745861942089,0.32915966,1766.4,1766.3,5.66155239]
[1745861942265,0.32915966,1766.4,1766.3,10.3431362]
[1745861942576,0.32915966,1766.4,1766.1,5.66199678]
[1745861942748,0.32915966,1766.4,1766.0,1.18752089]
[1745861942749,5.28015966,1766.4,1766.0,1.18752089]
[1745861942934,5.28015966,1766.4,1766.0,6.85000673]
[1745861943137,3.37528381,1766.3,1765.8,5.6629761]
[1745861943352,8.28015966,1766.4,1766.0,5.66232994]
[1745861943551,8.28015966,1766.4,1766.2,5.66180635]
[1745861943776,5.28015966,1766.4,1766.3,6.21155239]
[1745861943983,5.28015966,1766.4,1766.3,5.66155239]
[1745861944186,5.28015966,1766.4,1766.3,6.79387589]
[1745861944541,5.28015966,1766.4,1766.3,5.66155239]
[1745861945548,5.28015966,1766.4,1766.3,6.21155239]
[1745861946366,0.27915966,1766.4,1766.3,6.21155239]
[1745861947877,4.999,1767.1,1766.7,5.66024469]
[1745861948089,6.2366978,1766.9,1766.1,0.7952]
[1745861948270,6.2366978,1766.9,1766.4,5.66106334]
[1745861948572,6.2366978,1766.9,1766.4,5.66104906]
[1745861948744,6.2366978,1766.9,1766.5,11.32153029]
[1745861948947,0.67365978,1766.9,1766.6,5.66052482]
[1745861949146,0.62365978,1766.9,1766.6,5.66052482]
[1745861949376,0.4999,1767.0,1766.6,5.66038425]
[1745861949569,4.999,1767.1,1766.7,5.66014439]
[1745861949875,4.999,1767.1,1766.8,0.55]
[1745861950077,4.999,1767.1,1767.0,5.65930956]
[1745861950481,4.999,1767.1,1766.9,5.65949127]
[1745861950688,4.999,1767.1,1766.9,5.6594026]
[1745861950853,4.999,1767.1,1767.0,5.65930956]
[1745861952361,4.999,1767.1,1767.0,6.79118078]
[1745861954194,4.998,1767.4,1767.1,5.65879451]
[1745861954365,4.998,1767.4,1767.1,5.65878203]
[1745861954552,4.998,1767.4,1767.2,5.65849757]
[1745861954993,0.4060992,1767.5,1767.3,5.65816835]
[1745861955185,4.998,1767.4,1767.3,5.65816835]
[1745861955387,0.4060992,1767.5,1767.4,5.65802874]
[1745861955554,11.640797,1767.5,1767.1,6.20881001]
[1745861955756,11.640797,1767.5,1766.9,0.55]
[1745861955970,11.640797,1767.5,1767.0,5.6591]
[1745861956381,11.640797,1767.5,1767.1,5.6589323]
[1745861956580,14.5050767,1767.5,1767.1,5.6589323]
[1745861956798,14.5050767,1767.5,1767.1,5.65876607]
[1745861956972,14.5050767,1767.5,1767.2,5.6586467]
[1745861957296,14.5050767,1767.5,1767.1,11.31755717]
[1745861957494,6.2366978,1767.3,1767.0,5.65917808]
[1745861957709,6.2366978,1767.3,1766.9,11.86898229]
[1745861958012,6.2366978,1767.3,1766.7,5.66003669]
[1745861958311,6.2366978,1767.3,1766.8,5.65979258]
[1745861958608,6.2366978,1767.3,1766.9,5.65953567]
[1745861958966,6.2366978,1767.3,1766.8,5.65979258]
[1745861959194,6.2366978,1767.3,1766.8,5.65972464]
[1745861959399,6.2366978,1767.3,1766.8,11.31945212]
[1745861959609,6.86036758,1767.3,1766.8,11.31945212]
[1745861959760,6.86036758,1767.3,1766.8,5.65972464]
[1745861959964,6.2366978,1767.1,1766.6,6.08201285]
[1745861960197,4.997,1767.0,1766.8,5.65993986]
[1745861960360,4.997,1767.0,1766.8,5.65972924]
[1745861961471,4.997,1767.0,1766.9,5.65962986]
[1745861961665,4.997,1767.0,1766.8,5.65972924]
[1745861961865,4.997,1767.0,1766.8,11.31945838]
[1745861962109,4.997,1767.0,1766.9,5.65962986]
[1745861962492,4.997,1767.0,1766.8,5.65972914]
[1745861962671,4.997,1767.0,1766.8,11.31947223]
[1745861962871,4.997,1767.0,1766.8,5.65972914]
[1745861963185,4.997,1767.0,1766.9,5.65962986]
[1745861963570,5.11434843,1767.0,1766.9,5.65962986]
[1745861964406,5.11434843,1767.0,1766.8,11.31952139]
[1745861965207,5.11434843,1767.0,1766.8,5.65972914]
[1745861966298,5.11434843,1767.0,1766.5,5.66081756]
[1745861966495,6.2366978,1766.9,1766.4,6.42840207]
[1745861966696,6.35366811,1766.9,1766.5,5.66089973]
[1745861966894,6.35366811,1766.9,1766.4,6.428305]
[1745861967070,6.35366811,1766.9,1766.4,7.69227134]
[1745861968109,6.35366811,1766.9,1766.4,13.35334981]
[1745861968279,6.35366811,1766.9,1766.4,7.69217324]
[1745861968611,6.35366811,1766.9,1766.5,5.66085546]
[1745861968907,6.35366811,1766.9,1766.4,7.69217324]
[1745861969222,7.31306271,1766.9,1766.4,1.26396634]
[1745861969386,7.31306271,1766.9,1766.0,0.7598]
[1745861969387,6.2366978,1766.7,1766.0,0.7598]
[1745861969575,4.997,1766.6,1766.1,5.66213334]
[1745861969780,4.997,1766.6,1766.1,5.66202607]
[1745861969781,5.11211916,1766.6,1766.1,5.66202607]
[1745861970003,5.11211916,1766.6,1766.2,5.66183751]
[1745861970481,5.11211916,1766.6,1766.2,11.32352716]
[1745861970709,5.11211916,1766.6,1766.2,6.79404237]
[1745861970909,5.11211916,1766.6,1766.2,12.45569754]
[1745861971128,5.11211916,1766.6,1766.2,6.79399904]
[1745861971329,5.11211916,1766.6,1766.3,5.66139821]
[1745861973489,0.11511916,1766.6,1766.5,5.6609114]
[1745861973693,4.995,1766.8,1766.6,5.66056273]
[1745861974008,0.11316373,1766.7,1766.6,5.66056273]
[1745861975040,0.11316373,1766.7,1766.5,5.66076568]
[1745861975822,0.11316373,1766.7,1766.5,11.32145887]
[1745861976139,0.11316373,1766.7,1766.5,12.53003476]
[1745861976432,0.11316373,1766.7,1766.6,5.66059096]
[1745861977732,0.11316373,1766.7,1766.5,6.86926908]
[1745861978113,0.11316373,1766.7,1766.5,1.20857589]
[1745861978316,6.34986153,1766.7,1766.1,5.66197391]
[1745861978522,6.34986153,1766.7,1766.3,5.66142771]
[1745861978732,0.11316373,1766.7,1766.3,5.66142771]
[1745861979048,0.11316373,1766.7,1766.2,5.66166152]
[1745861979218,0.11316373,1766.7,1766.2,12.45570863]
[1745861979426,0.11316373,1766.7,1766.2,6.79403203]
[1745861979752,0.11316373,1766.7,1766.2,6.79402905]
[1745861979950,0.11316373,1766.7,1766.2,11.32336347]
[1745861980249,0.11316373,1766.7,1766.2,5.66165854]
[1745861980909,0.11316373,1766.7,1766.2,11.3233245]
[1745861981123,0.11316373,1766.7,1766.3,5.66143782]
[1745861983150,0.11316373,1766.7,1766.2,5.66165854]
[1745861983446,0.11316373,1766.7,1766.3,5.66144355]
[1745861983647,3.368184,1766.6,1766.3,5.66144355]
[1745861983845,3.368184,1766.6,1766.2,6.22782439]
[1745861984049,0.11090428,1766.5,1766.2,11.88950391]
[1745861984247,4.995,1766.4,1766.2,6.22782439]
[1745861984558,0.11027262,1766.3,1766.2,6.22782439]
[1745861984852,4.995,1766.4,1766.2,6.22790025]
[1745861985058,0.11027262,1766.3,1766.2,6.22790025]
[1745861985420,4.995,1766.4,1766.2,6.22790025]
[1745861985619,0.11027262,1766.3,1766.2,6.22790025]
[1745861985952,4.995,1766.4,1766.2,6.22790025]
[1745861986160,0.11027262,1766.3,1766.2,6.22784467]
[1745861986471,8.363184,1766.4,1766.0,1.3056]
[1745861986619,0.11027262,1766.3,1765.9,6.48523788]
[1745861986815,0.11027262,1766.3,1766.0,5.66249905]
[1745861987123,8.363184,1766.4,1766.0,5.66249905]
[1745861987320,0.11027262,1766.3,1766.0,6.87727274]
[1745861987632,8.363184,1766.4,1766.0,6.87727274]
[1745861988036,0.11027262,1766.3,1766.0,6.87727274]
[1745861988443,8.363184,1766.4,1766.0,6.87707499]
[1745861988650,8.363184,1766.4,1766.2,0.01450251]
[1745861988852,0.11027262,1766.3,1766.2,5.67637545]
[1745861989057,0.11027262,1766.3,1766.2,6.81022251]
[1745861989253,4.995,1766.4,1766.2,1.14834957]
[1745861989435,0.11027262,1766.3,1766.2,0.01450251]
[1745861989854,4.995,1766.4,1766.2,0.01450251]
[1745861990055,0.11027262,1766.3,1766.2,0.01450251]
[1745861990433,4.995,1766.4,1766.2,0.01450251]
[1745861990764,0.11027262,1766.3,1766.2,0.01450251]
[1745861990950,4.995,1766.4,1766.2,0.01450251]
[1745861991153,0.11027262,1766.3,1766.2,0.01450251]
[1745861991349,4.995,1766.4,1766.2,0.01450251]
[1745861991539,0.11027262,1766.3,1766.2,0.01450251]
[1745861991857,4.995,1766.4,1766.2,0.01450251]
[1745861992062,0.11027262,1766.3,1766.2,0.01450251]
[1745861992245,0.11027262,1766.3,1766.2,5.67637545]
[1745861992446,4.995,1766.4,1766.2,5.67620286]
[1745861992660,0.11027262,1766.3,1766.2,5.67620286]
[1745861993063,4.995,1766.4,1766.2,11.33795979]
[1745861993361,0.11027262,1766.3,1766.2,5.67620286]
[1745861993559,4.995,1766.4,1766.2,5.67620286]
[1745861993772,4.995,1766.4,1766.2,5.67618611]
[1745861994652,4.995,1766.4,1766.2,5.67614507]
[1745861995127,4.995,1766.4,1766.2,11.33781897]
[1745861995325,4.995,1766.4,1766.2,5.67614507]
[1745861996261,4.995,1766.4,1766.3,5.66155239]
[1745861996762,4.995,1766.4,1766.2,11.33787305]
[1745861997153,3.368184,1766.7,1766.2,0.01450251]
[1745861997458,0.41830721,1766.9,1766.2,0.01450251]
[1745861997459,4.996,1766.6,1766.5,5.6609114]
[1745862000831,4.996,1766.6,1766.3,5.66138464]
[1745862001047,4.996,1766.6,1766.2,5.67621658]
[1745862001251,3.368184,1766.5,1766.2,0.01450251]
[1745862001536,4.2046024,1766.5,1766.2,0.01450251]
[1745862001964,4.2046024,1766.5,1766.2,5.67619594]
[1745862002135,4.996,1766.6,1766.2,5.67619594]
[1745862002435,4.996,1766.6,1766.2,11.33784391]
[1745862002769,4.996,1766.6,1766.2,5.67615048]
[1745862003582,4.996,1766.6,1766.2,5.67614944]
[1745862004276,4.996,1766.6,1766.2,11.33779291]
[1745862004571,4.996,1766.6,1766.2,5.67614598]
[1745862005280,5.87536975,1766.6,1766.2,5.67614598]
[1745862005579,5.87536975,1766.6,1766.3,5.66149912]
[1745862005796,5.87536975,1766.6,1766.2,5.67614598]
[1745862006076,5.87536975,1766.6,1766.2,11.33779356]
[1745862006377,5.87536975,1766.6,1766.2,0.01450251]
[1745862006579,3.95572098,1766.5,1766.2,0.01450251]
[1745862010983,0.58753698,1766.5,1766.2,0.01450251]
[1745862011180,3.95572098,1766.5,1766.2,0.01450251]
[1745862012695,3.368184,1766.3,1766.2,0.01450251]
[1745862016412,3.368184,1766.3,1766.2,0.01450251]
[1745862019610,6.368184,1766.3,1766.2,0.01450251]
[1745862019843,7.0050024,1766.3,1766.2,0.01450251]
[1745862024024,3.0,1766.2,1765.3,0.7881]
[1745862024227,3.368184,1765.8,1765.3,6.45270651]
[1745862024523,4.993,1765.7,1765.3,6.45270651]
[1745862024885,4.993,1765.7,1765.3,0.7881]
[1745862025084,5.8291184,1765.7,1765.3,0.7881]
[1745862025282,4.993,1765.7,1765.3,0.7881]
[1745862025521,4.993,1765.7,1765.5,5.66379714]
[1745862025724,4.993,1765.7,1765.6,6.438997]
[1745862025930,4.994,1765.8,1765.7,5.66325984]
[1745862026216,4.994,1765.9,1765.8,5.66313325]
[1745862026431,4.994,1765.9,1765.7,12.10177678]
[1745862026612,4.994,1765.9,1765.8,5.66315551]
[1745862030724,4.994,1765.9,1765.7,6.43847616]
[1745862031528,0.21212458,1765.8,1765.7,6.43847616]
[1745862032624,0.21212458,1765.8,1765.7,0.7752]
[1745862032925,4.994,1765.9,1765.7,0.7752]
[1745862033124,0.21103838,1765.8,1765.7,0.7752]
[1745862033326,4.994,1765.9,1765.7,0.7752]
[1745862033531,0.21103838,1765.8,1765.7,0.7752]
[1745862033692,4.994,1765.9,1765.7,0.7752]
[1745862033890,0.21103838,1765.8,1765.7,0.7752]
[1745862034096,4.994,1765.9,1765.7,0.7752]
[1745862034335,0.21103838,1765.8,1765.6,0.805]
[1745862034869,0.21103838,1765.8,1765.5,5.66411649]
[1745862035000,4.994,1765.9,1765.5,12.13305029]
[1745862035207,0.21082946,1765.8,1765.5,12.13283193]
[1745862035733,0.21082946,1765.8,1765.6,5.66376149]
[1745862036435,0.21082946,1765.8,1765.5,6.46889813]
[1745862037032,0.21082946,1765.8,1765.6,5.66374161]
[1745862038011,0.21082946,1765.8,1765.5,6.46889813]
[1745862038522,0.21082946,1765.8,1765.5,12.13281153]
[1745862038942,0.21082946,1765.8,1765.5,6.46889813]
[1745862039445,0.21082946,1765.8,1765.6,11.32735358]
[1745862039739,0.21082946,1765.8,1765.7,6.43467624]
[1745862040122,0.21082946,1765.8,1765.7,0.7712]
[1745862040330,0.21082946,1765.8,1765.7,6.43467624]
[1745862040527,0.21082946,1765.8,1765.7,0.7712]
[1745862042615,0.21082946,1765.8,1765.5,6.36582371]
[1745862042811,0.21082946,1765.8,1765.6,0.7554]
[1745862043702,0.73131241,1765.8,1765.4,0.7883]
[1745862044117,3.76465668,1765.8,1765.2,6.45320378]
[1745862044339,3.76465668,1765.8,1765.2,0.7883]
[1745862045218,3.76465668,1765.8,1765.2,6.45335805]
[1745862046752,3.76465668,1765.8,1765.2,0.7883]
[1745862047049,0.37646567,1765.7,1765.2,0.7883]
[1745862047434,0.20718395,1765.6,1765.2,6.45334032]
[1745862047630,4.991,1765.5,1765.2,6.45334032]
[1745862047849,0.20643948,1765.4,1765.2,6.45334032]
[1745862048959,0.20643948,1765.4,1765.3,5.66475953]
[1745862049132,4.991,1765.5,1765.4,5.66443865]
[1745862050553,4.991,1765.5,1765.3,5.66452676]
[1745862051153,4.991,1765.5,1765.3,11.32906768]
[1745862051353,4.991,1765.5,1765.3,5.66452676]
[1745862052255,4.991,1765.5,1765.2,12.11804649]
[1745862052426,4.991,1765.5,1765.2,6.45315146]
[1745862052747,0.20643948,1765.4,1765.2,12.11803357]
[1745862052957,0.20643948,1765.4,1765.2,6.45315146]
[1745862053728,0.20643948,1765.4,1765.1,6.42546363]
[1745862054323,0.72618343,1765.4,1764.9,6.42609069]
[1745862054555,0.72618343,1765.4,1765.0,5.66570476]
[1745862054876,0.72618343,1765.4,1764.9,6.42609069]
[1745862054877,0.20643948,1765.4,1765.2,5.66505559]
[1745862055737,0.20643948,1765.4,1765.1,6.4253138]
[1745862056166,0.20643948,1765.4,1765.2,5.66503674]
[1745862057928,0.20643948,1765.4,1765.1,12.09052095]
[1745862058128,0.20643948,1765.4,1765.2,5.66506934]
[1745862058483,0.2,1766.5,1766.0,5.66251415]
[1745862058782,5.1983,1767.4,1766.8,5.65973851]
[1745862058942,5.1983,1767.4,1766.8,5.6598062]
[1745862059132,5.1983,1767.4,1766.9,5.65938224]
[1745862059579,5.1983,1767.4,1766.9,5.65938394]
[1745862059731,5.1983,1767.4,1767.0,5.65920956]
[1745862059923,0.51983,1767.3,1767.0,5.65910019]
[1745862060361,0.2063,1767.4,1767.0,5.65910019]
[1745862060669,4.992,1767.3,1767.0,5.65910019]
[1745862061361,4.992,1767.3,1767.1,5.65892527]
[1745862061561,4.992,1767.3,1766.9,0.7998]
[1745862061862,4.992,1767.3,1767.0,5.65910109]
[1745862062161,4.992,1767.3,1767.0,5.65905985]
[1745862062365,4.992,1767.3,1767.2,5.65866908]
[1745862062660,4.992,1767.3,1767.1,5.6587622]
[1745862062872,4.992,1767.3,1767.1,11.31749527]
[1745862063072,4.992,1767.3,1767.2,5.65866908]
[1745862063744,4.992,1767.3,1767.1,5.65873307]
[1745862063941,4.992,1767.3,1767.1,6.85511303]
[1745862064244,4.992,1767.3,1767.1,12.51386782]
[1745862064572,4.992,1767.3,1767.1,1.19637996]
[1745862064776,4.992,1767.3,1767.0,6.30508374]
[1745862065377,0.4060992,1767.5,1767.0,6.30498106]
[1745862065582,0.4060992,1767.5,1767.0,0.64588599]
[1745862065766,0.4060992,1767.5,1767.0,5.65910561]
[1745862065965,0.4060992,1767.5,1766.9,6.459272]
[1745862066209,0.12701133,1767.4,1767.0,5.65929976]
[1745862066407,4.986,1767.3,1767.0,5.65907507]
[1745862066662,0.12619849,1767.2,1767.0,5.65907507]
[1745862066863,0.12619849,1767.2,1767.0,6.87090873]
[1745862067319,0.12619849,1767.2,1767.0,1.21183366]
[1745862067612,0.33249849,1767.2,1766.6,6.46996083]
[1745862067771,0.33249849,1767.2,1766.6,6.46975262]
[1745862067972,0.33249849,1767.2,1766.6,12.13012032]
[1745862068174,0.33249849,1767.2,1766.7,5.66025656]
[1745862068585,0.33249849,1767.2,1766.8,5.6598419]
[1745862068769,0.33249849,1767.2,1766.7,6.87316143]
[1745862069117,0.33249849,1767.2,1766.8,5.65985034]
[1745862069269,0.33249849,1767.2,1766.7,6.87311277]
[1745862069811,0.33249849,1767.2,1766.7,1.21302186]
[1745862070012,0.86434834,1767.2,1766.7,1.21302186]
[1745862070793,0.86434834,1767.2,1766.7,6.87326133]
[1745862071089,0.86434834,1767.2,1766.7,6.87314382]
[1745862071484,0.86434834,1767.2,1766.7,1.21302186]
[1745862071704,0.86434834,1767.2,1766.7,6.87307758]
[1745862072627,3.86434834,1767.2,1766.7,1.21302186]
[1745862073230,3.86434834,1767.2,1766.7,6.87319366]
[1745862073834,3.0,1766.8,1766.2,6.44062801]
[1745862074133,5.11774634,1766.7,1766.2,0.779]
[1745862074443,5.11774634,1766.7,1766.2,6.44065629]
[1745862074597,5.11774634,1766.7,1766.2,12.80298274]
[1745862074802,5.11774634,1766.7,1766.3,5.66137308]
[1745862075843,5.11774634,1766.7,1766.3,11.32268831]
[1745862075998,5.11774634,1766.7,1766.3,5.66131523]
[1745862076749,5.11774634,1766.7,1766.3,11.3226367]
[1745862076916,5.11774634,1766.7,1766.5,5.66062204]
[1745862077443,5.11774634,1766.7,1766.6,5.66059096]
[1745862077849,5.11774634,1766.7,1766.6,6.47669096]
[1745862078517,5.11774634,1766.7,1766.6,0.8161]
[1745862079113,5.11774634,1766.7,1766.6,6.47669096]
[1745862079413,5.11774634,1766.7,1766.6,7.69042956]
[1745862080047,5.11774634,1766.7,1766.6,2.0298386]
[1745862080551,5.11774634,1766.7,1766.6,7.69042956]
[1745862082019,5.11774634,1766.7,1766.6,2.0298386]
[1745862082419,5.11774634,1766.7,1766.6,7.69042956]
[1745862083244,4.35217414,1766.7,1766.6,7.69042956]
[1745862083647,4.2194278,1766.7,1766.6,2.0298386]
[1745862084023,4.4257278,1766.7,1766.3,0.8186]
[1745862084344,0.13741638,1766.6,1766.2,0.70069077]
[1745862084548,0.13741638,1766.6,1766.2,6.36234409]
[1745862085061,0.13741638,1766.6,1766.3,5.66141795]
[1745862085257,0.13741638,1766.6,1766.3,6.86379415]
[1745862085917,0.2063,1766.7,1766.3,6.86379415]
[1745862086363,0.13724895,1766.6,1766.3,6.86379415]
[1745862086557,0.2063,1766.7,1766.3,1.2023762]
[1745862086935,5.12324895,1766.6,1766.3,1.2023762]
[1745862087138,5.12324895,1766.6,1766.3,6.86391713]
[1745862088456,5.12324895,1766.6,1766.3,1.2023762]
[1745862088632,5.12324895,1766.6,1766.3,5.6614482]
[1745862088840,5.12324895,1766.6,1766.2,5.66179162]
[1745862090762,5.12324895,1766.6,1766.2,5.66166043]
[1745862092453,5.12324895,1766.6,1766.1,6.48059687]
[1745862092761,5.12324895,1766.6,1766.1,12.14259748]
[1745862092963,5.12324895,1766.6,1766.2,1.21425975]
[1745862093261,5.12324895,1766.6,1766.2,6.87612176]
[1745862093662,5.12324895,1766.6,1766.2,1.21425975]
[1745862093888,3.2063,1766.5,1766.0,0.55]
[1745862094360,0.13650558,1766.4,1766.0,6.2122939]
[1745862094560,0.13650558,1766.4,1766.0,11.87464305]
[1745862094765,0.13650558,1766.4,1766.1,0.52538777]
[1745862095065,0.13650558,1766.4,1766.1,6.18755354]
[1745862095274,0.13650558,1766.4,1766.1,6.90215051]
[1745862096479,0.13650558,1766.4,1766.1,1.23998474]
[1745862096982,4.985,1766.3,1766.0,11.32459229]
[1745862097167,0.13421329,1766.2,1766.0,11.32459229]
[1745862097483,0.13421329,1766.2,1766.1,6.18797551]
[1745862098874,3.34051329,1766.2,1766.1,0.52578198]
[1745862099076,3.34051329,1766.2,1765.8,0.295803]
[1745862099292,3.34051329,1766.2,1765.8,6.51674441]
[1745862099644,3.34051329,1766.2,1765.9,5.66280904]
[1745862099844,3.34051329,1766.2,1765.8,6.51660122]
[1745862099845,3.34051329,1766.2,1765.8,6.51669494]
[1745862100040,3.34051329,1766.2,1765.8,0.85362567]
[1745862100265,3.34051329,1766.2,1765.8,0.295803]
[1745862100681,3.34051329,1766.2,1765.7,5.66346048]
[1745862101578,3.34051329,1766.2,1765.7,5.66326801]
[1745862102173,3.34051329,1766.2,1765.9,5.6627462]
[1745862106306,3.34051329,1766.2,1765.8,5.66292747]
[1745862106981,3.34051329,1766.2,1765.9,5.66270553]
[1745862110117,3.34051329,1766.2,1765.8,12.45850598]
[1745862110323,3.34051329,1766.2,1765.9,5.66273314]
[1745862111825,3.2063,1766.2,1765.9,5.66273314]
[1745862112128,3.2063,1766.2,1765.9,5.66261549]
[1745862112429,3.2063,1766.2,1765.9,6.98933771]
[1745862112723,3.2063,1766.2,1765.9,1.32672222]
[1745862113221,3.2063,1766.2,1766.0,5.66236483]
[1745862113426,3.2063,1766.2,1765.9,12.65214828]
[1745862113623,3.2063,1766.2,1766.0,5.66248027]
[1745862114136,3.0,1766.2,1766.0,5.66248027]
[1745862114424,3.0,1766.2,1766.0,6.9276624]
[1745862115423,3.0,1766.2,1766.0,1.26518213]
[1745862115923,3.0,1766.2,1766.0,5.66249865]
[1745862116225,3.0,1766.2,1765.9,5.66261881]
[1745862116226,3.0,1766.2,1765.9,11.32528023]
[1745862117228,3.0,1766.2,1766.0,5.66249924]
[1745862118238,3.0,1766.2,1765.9,5.66261881]